bitfinex/quotes_SOLUSD_20220211
["timestamp","ask_amount","ask_price","bid_price","bid_amount"]
[1644585436583,18.6815,107.13,107.07,37.37949829]
[1644585437784,14.0135,107.13,107.07,42.04749829]
[1644585438390,30.87260705,107.12,107.07,42.04749829]
[1644585438587,35.54060705,107.12,107.07,37.37949829]
[1644585439891,4.668,107.12,107.07,37.37949829]
[1644585440487,13.55,107.17,107.07,37.37949829]
[1644585440488,18.6792,107.14,107.07,37.37949829]
[1644585440688,14.0112,107.14,107.07,37.37949829]
[1644585440892,59.92575822,107.14,107.07,37.37949829]
[1644585442295,59.92575822,107.14,107.09,37.50297182]
[1644585442891,59.92575822,107.14,107.09,37.75297182]
[1644585443795,59.92575822,107.14,107.09,37.50297182]
[1644585444194,14.0112,107.14,107.09,37.50297182]
[1644585446297,4.667,107.16,107.09,47.93797182]
[1644585446497,318.0092,107.25,107.09,47.93797182]
[1644585446498,4.667,107.18,107.1,20.60066791]
[1644585446695,13.55,107.23,107.11,47.5184]
[1644585446696,4.666,107.19,107.11,47.5184]
[1644585446896,28.3497,107.22,107.11,2.63366791]
[1644585447097,37.41463976,107.21,107.12,41.02867663]
[1644585447297,39.50296319,107.19,107.12,41.27867663]
[1644585447697,53.50866319,107.19,107.12,41.27867663]
[1644585447897,53.50866319,107.19,107.12,43.66234454]
[1644585448098,4.665,107.21,107.12,43.66234454]
[1644585448399,4.665,107.22,107.13,0.31851404]
[1644585448700,4.665,107.23,107.14,4.665]
[1644585448899,4.664,107.24,107.14,7.29866791]
[1644585449099,50.22687258,107.25,107.15,49.22302349]
[1644585449300,50.22687258,107.25,107.17,34.79024456]
[1644585449700,64.22547258,107.25,107.17,35.04024456]
[1644585449900,18.6626,107.25,107.18,2.38366791]
[1644585450398,18.6626,107.25,107.18,2.63366791]
[1644585450798,18.6626,107.25,107.19,40.46735706]
[1644585451199,54.75773555,107.25,107.19,40.46735706]
[1644585452502,54.75773555,107.25,107.16,31.75226791]
[1644585452703,54.75773555,107.25,107.16,27.08926791]
[1644585452903,54.75773555,107.25,107.16,2.38366791]
[1644585453102,54.75773555,107.25,107.14,18.213]
[1644585453103,33.304349,107.24,107.13,2.38366791]
[1644585453303,18.214,107.23,107.13,2.38366791]
[1644585453503,14.0056,107.2,107.14,48.57656694]
[1644585453704,50.10073555,107.2,107.13,2.38366791]
[1644585453903,4.665,107.19,107.09,51.2043]
[1644585454103,4.665,107.19,107.09,64.7543]
[1644585454302,4.665,107.19,107.09,51.2043]
[1644585454703,4.665,107.19,107.09,46.5393]
[1644585454907,40.81919921,107.18,107.1,43.93721928]
[1644585455505,65.31899921,107.18,107.08,4.666]
[1644585455703,4.667,107.17,107.08,4.666]
[1644585456426,36.09840374,107.16,107.09,41.91852628]
[1644585456605,4.667,107.15,107.09,41.91852628]
[1644585456805,14.0121,107.15,107.09,41.91852628]
[1644585457006,4.667,107.17,107.09,41.91852628]
[1644585457306,4.667,107.18,107.09,41.91852628]
[1644585457509,4.667,107.18,107.1,4.666]
[1644585457911,34.90129507,107.17,107.11,44.76455231]
[1644585458113,14.0111,107.15,107.07,64.06816791]
[1644585458311,4.668,107.14,107.07,68.98516791]
[1644585458512,4.668,107.14,107.07,50.51816791]
[1644585458713,4.668,107.16,107.07,50.51816791]
[1644585459112,42.01630788,107.15,107.08,48.47746828]
[1644585459313,42.01630788,107.15,107.1,45.45460371]
[1644585459613,51.3761,107.17,107.1,45.45460371]
[1644585460416,51.02206423,107.17,107.1,45.45460371]
[1644585461719,14.0112,107.15,107.1,45.45460371]
[1644585462620,44.57373872,107.15,107.1,45.45460371]
[1644585463018,14.0112,107.15,107.1,45.45460371]
[1644585463218,14.0093,107.17,107.1,45.45460371]
[1644585463418,14.0093,107.17,107.11,4.667]
[1644585463619,4.667,107.2,107.11,4.667]
[1644585463819,4.667,107.2,107.11,4.917]
[1644585464054,51.89452048,107.2,107.12,42.55165887]
[1644585464246,51.89452048,107.2,107.14,36.57680319]
[1644585464846,14.0062,107.19,107.14,36.57680319]
[1644585465047,4.665,107.18,107.14,36.57680319]
[1644585465249,14.0062,107.19,107.14,36.57680319]
[1644585466450,4.665,107.2,107.14,36.57680319]
[1644585466647,41.5259,107.21,107.14,36.57680319]
[1644585467347,40.67232167,107.2,107.14,36.57680319]
[1644585467547,4.665,107.19,107.14,36.57680319]
[1644585467950,18.6704,107.19,107.14,36.57680319]
[1644585468147,14.0054,107.19,107.14,36.57680319]
[1644585468351,22.8571,107.21,107.14,36.57680319]
[1644585468547,27.5221,107.21,107.14,36.57680319]
[1644585469550,14.0042,107.2,107.13,4.665]
[1644585469749,4.665,107.19,107.13,4.665]
[1644585469954,4.665,107.19,107.07,4.665]
[1644585469955,13.55,107.18,107.07,4.665]
[1644585470152,4.667,107.17,107.06,4.667]
[1644585470350,42.26838769,107.16,107.07,35.1066622]
[1644585470552,4.667,107.15,107.07,37.49033011]
[1644585470751,46.7089,107.17,107.07,37.49033011]
[1644585470752,34.64921526,107.14,107.07,37.49033011]
[1644585471151,34.64921526,107.14,107.07,37.74033011]
[1644585471552,4.668,107.13,107.07,37.74033011]
[1644585472951,4.668,107.13,107.07,37.49033011]
[1644585473653,4.668,107.13,107.07,53.27953028]
[1644585474052,34.64921526,107.14,107.09,39.39398433]
[1644585474853,14.0129,107.13,107.09,39.39398433]
[1644585475153,18.6809,107.13,107.09,39.39398433]
[1644585475756,18.6809,107.13,107.07,18.42286808]
[1644585476655,18.6809,107.13,107.08,35.76227968]
[1644585478257,34.84185898,107.12,107.07,18.17286808]
[1644585478555,4.668,107.11,107.06,4.668]
[1644585478755,34.84185898,107.12,107.05,4.668]
[1644585478955,4.668,107.11,107.03,140.7248]
[1644585479156,81.56675898,107.12,107.03,116.468]
[1644585479357,42.07574397,107.1,107.03,146.34607209]
[1644585479556,14.0181,107.09,107.03,148.72974]
[1644585479756,42.07574397,107.1,107.04,4.67]
[1644585479955,42.07574397,107.1,107.04,4.92]
[1644585480156,42.07574397,107.1,107.05,43.65378613]
[1644585480356,42.07574397,107.1,107.05,43.90378613]
[1644585480557,42.07574397,107.1,107.05,46.28745404]
[1644585481758,42.07574397,107.1,107.04,4.67]
[1644585481957,4.668,107.09,107.04,4.67]
[1644585482757,18.6859,107.09,107.04,4.67]
[1644585482958,4.67,107.11,107.04,4.67]
[1644585483359,4.67,107.11,107.04,7.30366791]
[1644585483759,52.11345337,107.11,107.05,48.70751024]
[1644585483964,14.0165,107.1,107.05,48.95751024]
[1644585484160,52.11345337,107.11,107.05,48.95751024]
[1644585485762,66.12865337,107.11,107.05,48.95751024]
[1644585486464,66.12865337,107.11,107.05,48.70751024]
[1644585486664,66.12865337,107.11,107.05,48.95751024]
[1644585487062,66.12865337,107.11,107.05,51.34117815]
[1644585487263,18.6852,107.11,107.05,51.34117815]
[1644585487762,4.67,107.11,107.05,51.34117815]
[1644585487963,4.67,107.11,107.06,4.668]
[1644585488363,4.67,107.11,107.07,42.73393778]
[1644585489664,79.14520292,107.12,107.07,42.73393778]
[1644585490292,54.60760292,107.12,107.07,42.73393778]
[1644585491294,54.60760292,107.12,107.06,4.918]
[1644585491491,18.683,107.11,107.06,4.918]
[1644585491690,18.683,107.11,107.06,0.25]
[1644585491891,18.683,107.11,107.05,2.63366791]
[1644585492091,18.683,107.11,107.04,47.5155]
[1644585492293,18.683,107.11,107.05,39.94476811]
[1644585492791,18.683,107.11,107.05,40.19476811]
[1644585494095,36.32380003,107.1,107.04,54.56716791]
[1644585494303,4.668,107.09,107.04,4.668]
[1644585495198,40.59380292,107.08,107.04,4.668]
[1644585495397,4.67,107.07,107.04,4.668]
[1644585495598,50.34510003,107.06,107.01,44.99112953]
[1644585495798,17.05349997,107.06,107.01,44.99112953]
[1644585496000,14.0213,107.06,107.01,44.99112953]
[1644585496198,14.0213,107.06,107.0,2.40766791]
[1644585496401,14.0213,107.06,107.0,2.65766791]
[1644585497100,61.20869724,107.06,107.0,49.8315239]
[1644585497499,14.0213,107.06,107.0,65.62072407]
[1644585497700,14.0201,107.07,107.01,4.671]
[1644585497900,27.2817,107.08,107.01,4.671]
[1644585498099,22.6107,107.08,107.02,18.17286808]
[1644585498300,22.6107,107.08,107.03,4.67]
[1644585498501,22.6107,107.08,107.04,45.47272612]
[1644585498700,46.17600026,107.09,107.04,45.47272612]
[1644585498904,50.84600026,107.09,107.04,45.47272612]
[1644585499100,18.6874,107.09,107.04,45.47272612]
[1644585499302,14.0174,107.09,107.04,45.47272612]
[1644585505013,4.67,107.08,107.04,45.47272612]
[1644585505214,4.67,107.08,107.03,3.69137186]
[1644585505415,14.0197,107.07,107.02,30.34230395]
[1644585505714,4.67,107.06,107.02,1.30770395]
[1644585505915,4.67,107.07,107.01,24.46320395]
[1644585506117,4.671,107.08,107.01,24.46320395]
[1644585506316,4.671,107.08,107.02,46.41323709]
[1644585506517,14.0213,107.06,107.02,47.72094104]
[1644585507415,4.671,107.08,107.02,47.72094104]
[1644585508815,14.0197,107.07,107.02,50.10460895]
[1644585510120,57.55987118,107.07,107.02,50.10460895]
[1644585510421,14.0197,107.07,107.02,48.796905]
[1644585511417,50.34417551,107.07,107.02,48.796905]
[1644585512017,50.34417551,107.07,107.02,2.38366791]
[1644585512621,4.67,107.06,107.02,2.38366791]
[1644585512819,18.6918,107.06,107.02,2.38366791]
[1644585513118,38.66734321,107.05,107.02,2.38366791]
[1644585513320,6.06439994,107.04,107.02,2.38366791]
[1644585513620,6.06439994,107.04,107.01,1.30770395]
[1644585513819,6.06439994,107.04,107.0,1.33170395]
[1644585514020,20.08769994,107.04,107.0,0.024]
[1644585514420,38.25025974,107.03,107.0,0.024]
[1644585514621,38.25025974,107.03,106.99,114.18366791]
[1644585514822,35.83994449,107.01,106.99,114.18366791]
[1644585515020,35.83994449,107.01,106.99,114.20766791]
[1644585515222,4.672,107.04,106.99,114.18366791]
[1644585515422,4.672,107.06,106.99,114.20766791]
[1644585515623,14.0256,107.04,107.0,0.024]
[1644585516321,14.0256,107.04,107.0,34.65330607]
[1644585516525,14.0223,107.05,107.0,38.34467793]
[1644585516721,23.9001,107.07,107.0,37.06097398]
[1644585516923,23.9001,107.07,107.01,0.024]
[1644585517421,23.9001,107.07,107.02,44.4413359]
[1644585517623,4.67,107.06,107.02,44.4413359]
[1644585517825,14.0209,107.06,107.02,46.82500381]
[1644585519325,44.19605091,107.06,107.02,2.38366791]
[1644585519524,44.19605091,107.06,107.01,0.024]
[1644585519724,44.19605091,107.06,107.0,26.38467186]
[1644585519926,4.671,107.05,107.0,26.38467186]
[1644585520125,18.6939,107.05,107.0,25.07696791]
[1644585520925,18.6939,107.05,107.01,44.94240173]
[1644585521126,4.671,107.05,107.01,44.94240173]
[1644585521326,14.021,107.06,107.02,2.38366791]
[1644585522025,14.021,107.06,107.03,35.87830452]
[1644585524349,14.0195,107.07,107.03,38.51197243]
[1644585524752,14.0195,107.07,107.03,38.26197243]
[1644585524952,14.0195,107.07,107.03,35.87830452]
[1644585527955,49.36284382,107.07,107.03,35.87830452]
[1644585528354,14.0195,107.07,107.03,35.87830452]
[1644585529556,18.6895,107.07,107.03,35.87830452]
[1644585529756,18.6895,107.07,107.02,1.30770395]
[1644585529956,28.6245,107.07,107.01,1.33170395]
[1644585530160,28.6245,107.07,107.01,0.024]
[1644585530760,14.0244,107.05,107.01,0.024]
[1644585530958,14.0244,107.05,107.01,2.38366791]
[1644585531159,14.0244,107.05,107.01,3.69137186]
[1644585531360,14.0244,107.05,107.0,36.86950241]
[1644585531562,36.87619706,107.04,107.0,1.33170395]
[1644585531765,14.0244,107.03,107.0,1.30770395]
[1644585531962,18.6964,107.03,106.99,111.824]
[1644585532663,40.04140589,107.02,106.99,111.824]
[1644585532862,6.06439994,107.01,106.99,111.824]
[1644585533062,6.06439994,107.01,106.99,111.8]
[1644585533863,6.06439994,107.01,106.99,114.18366791]
[1644585534364,6.06439994,107.01,106.99,111.8]
[1644585535869,6.06439994,107.01,106.99,114.18366791]
[1644585536267,14.0245,107.03,106.99,114.18366791]
[1644585536468,23.7381,107.05,106.99,115.51537186]
[1644585536667,23.7381,107.05,106.99,115.76537186]
[1644585536867,65.73645125,107.05,106.99,158.68984154]
[1644585537070,23.7381,107.05,107.0,1.30770395]
[1644585537270,14.0234,107.04,107.0,1.33170395]
[1644585537471,14.0234,107.04,107.01,2.38366791]
[1644585537670,6.06439994,107.03,107.01,2.38366791]
[1644585538071,4.672,107.07,107.02,47.24676522]
[1644585538270,14.0205,107.06,107.02,47.24676522]
[1644585539873,14.0205,107.06,107.02,51.91776522]
[1644585540076,4.671,107.09,107.03,2.38366791]
[1644585540273,4.671,107.12,107.04,4.67]
[1644585540474,4.671,107.12,107.04,116.47]
[1644585540682,4.671,107.12,107.05,2.38366791]
[1644585540978,34.52844322,107.13,107.05,65.23719512]
[1644585541380,4.668,107.12,107.06,2.38366791]
[1644585541674,4.668,107.12,107.07,34.19725627]
[1644585542079,4.668,107.12,107.07,36.58092418]
[1644585542275,46.7139,107.14,107.07,36.58092418]
[1644585543075,88.65872638,107.14,107.07,36.58092418]
[1644585545285,46.7139,107.14,107.07,36.58092418]
[1644585545479,14.0116,107.14,107.07,36.83092418]
[1644585545679,14.0116,107.14,107.08,4.668]
[1644585545878,14.0116,107.14,107.08,4.918]
[1644585546082,14.0116,107.14,107.09,2.38366791]
[1644585546278,14.0116,107.14,107.1,41.01297879]
[1644585546680,14.0116,107.14,107.1,43.3966467]
[1644585547081,47.96093483,107.14,107.1,2.38366791]
[1644585547280,4.667,107.13,107.1,2.38366791]
[1644585547480,6.06439994,107.12,107.1,2.38366791]
[1644585553788,18.6788,107.13,107.1,2.38366791]
[1644585554084,14.0118,107.13,107.1,2.38366791]
[1644585554485,4.667,107.12,107.08,2.38366791]
[1644585554690,14.0157,107.11,107.08,2.38366791]
[1644585554885,4.668,107.1,107.07,4.668]
[1644585555085,4.668,107.11,107.07,4.668]
[1644585555286,4.668,107.11,107.04,111.8]
[1644585555486,38.7155684,107.1,107.05,41.61579392]
[1644585555685,18.6857,107.09,107.05,41.61579392]
[1644585556388,14.0177,107.09,107.05,43.99946183]
[1644585556984,14.0177,107.09,107.05,41.61579392]
[1644585557184,14.0177,107.09,107.04,111.8]
[1644585557385,14.0177,107.09,107.04,112.05]
[1644585557586,14.0177,107.09,107.04,114.43366791]
[1644585557787,14.0177,107.09,107.04,114.18366791]
[1644585558186,59.47397884,107.09,107.04,157.04546823]
[1644585558587,59.47397884,107.09,107.04,114.18366791]
[1644585559288,14.0177,107.09,107.04,114.18366791]
[1644585560389,50.17154349,107.08,107.04,114.18366791]
[1644585560590,54.84154349,107.08,107.04,114.18366791]
[1644585560789,50.17154349,107.08,107.04,114.18366791]
[1644585561390,50.17154349,107.08,107.04,111.8]
[1644585561991,58.38854349,107.08,107.04,111.8]
[1644585562192,4.67,107.07,107.04,111.8]
[1644585562393,60.8534594,107.06,107.04,111.8]
[1644585563794,65.5234594,107.06,107.04,111.8]
[1644585565833,65.5234594,107.06,107.01,0.024]
[1644585565834,46.0,107.05,107.01,0.024]
[1644585566023,18.6978,107.04,107.0,4.694]
[1644585566224,39.9958,107.04,107.0,0.024]
[1644585566423,39.9958,107.04,106.98,0.024]
[1644585566625,59.1987,107.04,106.96,2.40766791]
[1644585566824,37.9007,107.04,106.97,0.024]
[1644585567023,37.9007,107.04,106.99,2.38366791]
[1644585567222,14.0268,107.04,106.99,2.40766791]
[1644585567422,47.0,107.09,106.99,2.40766791]
[1644585567423,4.672,107.09,106.99,2.40766791]
[1644585567623,29.6174,107.1,107.0,2.40766791]
[1644585567824,29.6174,107.1,107.01,40.81630798]
[1644585568023,4.67,107.13,107.01,66.29688001]
[1644585568225,4.67,107.13,107.02,1.30770395]
[1644585568424,70.9601,107.14,107.02,1.30770395]
[1644585568425,70.9601,107.14,107.03,19.52570395]
[1644585568624,14.0139,107.12,107.03,45.69557203]
[1644585568827,14.0139,107.12,107.05,46.12859506]
[1644585569227,14.0139,107.12,107.06,2.38366791]
[1644585569426,14.0139,107.12,107.06,2.63366791]
[1644585570027,14.0139,107.12,107.07,2.38366791]
[1644585570228,14.0139,107.12,107.08,43.32703084]
[1644585570636,14.0139,107.12,107.08,45.71069875]
[1644585573131,14.0139,107.12,107.08,2.38366791]
[1644585574033,17.53496185,107.11,107.08,2.38366791]
[1644585574235,14.0139,107.12,107.08,2.38366791]
[1644585574433,14.0139,107.12,107.05,42.48002245]
[1644585574636,4.668,107.11,107.05,42.48002245]
[1644585575935,4.668,107.11,107.05,42.73002245]
[1644585576133,57.7253912,107.12,107.07,47.25030245]
[1644585576334,14.0139,107.12,107.07,47.50030245]
[1644585577433,4.668,107.11,107.07,47.50030245]
[1644585577834,14.0139,107.12,107.07,47.50030245]
[1644585578937,14.0127,107.13,107.08,4.668]
[1644585579138,76.3233,107.16,107.08,4.668]
[1644585579338,76.3233,107.16,107.08,4.918]
[1644585579936,122.97705172,107.16,107.09,47.62264384]
[1644585580339,24.9464,107.16,107.09,47.87264384]
[1644585580539,51.667,107.18,107.09,47.87264384]
[1644585581239,43.93991556,107.17,107.09,47.87264384]
[1644585581439,4.667,107.16,107.09,47.87264384]
[1644585581638,4.667,107.17,107.1,2.38366791]
[1644585581840,4.667,107.17,107.1,10.69866791]
[1644585582239,4.667,107.17,107.11,2.38366791]
[1644585582440,4.667,107.17,107.12,41.5819114]
[1644585582941,4.667,107.17,107.13,2.38366791]
[1644585583141,18.6735,107.18,107.14,42.08489161]
[1644585583741,18.6735,107.18,107.13,2.38366791]
[1644585584743,39.61720542,107.18,107.12,35.76137436]
[1644585585942,39.61720542,107.18,107.12,0.25]
[1644585586143,39.61720542,107.18,107.11,25.91716791]
[1644585586553,39.61720542,107.18,107.11,25.66716791]
[1644585586945,39.61720542,107.18,107.11,69.19216726]
[1644585587144,18.6735,107.18,107.11,69.19216726]
[1644585587543,18.6735,107.18,107.11,73.85816726]
[1644585587943,18.6735,107.18,107.11,74.10816726]
[1644585588144,38.5927938,107.17,107.11,50.57466726]
[1644585588444,52.6007938,107.17,107.11,50.82466726]
[1644585590645,14.008,107.17,107.11,50.82466726]
[1644585591348,14.008,107.17,107.11,46.15866726]
[1644585593247,14.0059,107.18,107.11,46.15866726]
[1644585593449,14.0059,107.18,107.12,4.666]
[1644585593649,14.0059,107.18,107.13,39.64414136]
[1644585593847,14.0059,107.18,107.13,42.27780927]
[1644585594851,18.6706,107.19,107.14,2.38366791]
[1644585595050,14.0046,107.19,107.14,7.04866791]
[1644585595250,14.0046,107.19,107.14,7.29866791]
[1644585595451,14.0046,107.19,107.15,2.38366791]
[1644585595652,14.0046,107.19,107.15,37.3223966]
[1644585596752,14.0046,107.19,107.15,2.38366791]
[1644585597149,14.0046,107.19,107.15,2.63366791]
[1644585598851,28.60378445,107.19,107.16,2.38366791]
[1644585599051,18.6708,107.18,107.16,2.38366791]
[1644585599251,33.72219994,107.18,107.14,4.665]
[1644585599852,33.72219994,107.18,107.08,5.97270395]
[1644585600053,38.92042965,107.17,107.08,39.47904121]
[1644585600256,34.55357162,107.15,107.08,39.47904121]
[1644585600453,45.44957162,107.15,107.08,39.47904121]
[1644585601154,14.0118,107.15,107.08,39.47904121]
[1644585601456,14.0118,107.15,107.08,39.72904121]
[1644585602255,18.6788,107.15,107.08,39.72904121]
[1644585602661,47.0,107.17,107.09,72.0]
[1644585602862,115.4612,107.24,107.09,82.06166791]
[1644585603056,4.79965002,107.24,107.11,72.0]
[1644585603259,445.18183567,107.26,107.17,2.38366791]
[1644585603562,4.665,107.25,107.18,13.55]
[1644585603756,445.18183567,107.26,107.18,31.6184794]
[1644585603757,14.0003,107.24,107.18,31.6184794]
[1644585604056,4.663,107.3,107.19,2.38366791]
[1644585604255,4.663,107.3,107.21,169.34]
[1644585604459,64.87964579,107.33,107.23,169.34]
[1644585604460,4.663,107.31,107.23,169.34]
[1644585604659,34.36473924,107.3,107.21,11.186]
[1644585604858,39.02473924,107.3,107.23,13.55]
[1644585605058,34.36473924,107.3,107.23,13.55]
[1644585605464,4.66,107.32,107.23,13.55]
[1644585605660,0.7,107.34,107.24,4.66]
[1644585605661,4.615,107.33,107.24,4.66]
[1644585605892,18.6039,107.33,107.23,13.55]
[1644585606060,18.6039,107.33,107.22,13.55]
[1644585606263,2.38366791,107.32,107.22,13.55]
[1644585606476,53.44997875,107.31,107.22,13.8]
[1644585606678,48.78997875,107.31,107.23,4.66]
[1644585606976,48.78997875,107.31,107.24,13.55]
[1644585607378,48.78997875,107.31,107.24,13.8]
[1644585608177,4.66,107.3,107.24,13.55]
[1644585608377,42.66910912,107.29,107.24,13.55]
[1644585608780,39.13224935,107.27,107.23,4.66]
[1644585608979,39.13224935,107.27,107.21,66.2429]
[1644585609179,39.13224935,107.27,107.21,13.55]
[1644585610785,39.13224935,107.27,107.21,13.8]
[1644585611182,39.13224935,107.27,107.21,13.55]
[1644585611483,39.13224935,107.27,107.2,4.662]
[1644585611686,4.662,107.26,107.19,13.55]
[1644585611882,43.79524935,107.27,107.19,13.55]
[1644585612082,39.13224935,107.27,107.19,13.55]
[1644585612286,4.662,107.26,107.19,13.55]
[1644585613285,46.75425416,107.25,107.19,13.55]
[1644585613483,4.663,107.24,107.19,13.55]
[1644585613683,34.41490162,107.23,107.19,13.55]
[1644585615690,34.41490162,107.23,107.19,13.8]
[1644585616087,4.663,107.25,107.2,4.663]
[1644585616288,4.663,107.29,107.2,4.663]
[1644585616487,4.663,107.29,107.21,13.55]
[1644585616687,4.662,107.31,107.22,4.662]
[1644585616886,4.662,107.31,107.22,18.462]
[1644585617086,47.91345793,107.3,107.22,18.462]
[1644585617287,47.91345793,107.3,107.22,20.84566791]
[1644585618288,5.36,107.34,107.22,20.84566791]
[1644585618488,5.36,107.34,107.22,41.32477521]
[1644585619389,13.9906,107.32,107.23,6.0]
[1644585619589,45.72940884,107.31,107.24,18.21]
[1644585619991,45.72940884,107.31,107.24,18.46]
[1644585620888,50.38940884,107.31,107.24,13.55]
[1644585621089,64.38070884,107.31,107.24,13.55]
[1644585621695,64.38070884,107.31,107.23,4.66]
[1644585623196,111.38070884,107.31,107.23,4.66]
[1644585624298,111.38070884,107.31,107.2,18.21]
[1644585625099,106.72070884,107.31,107.2,20.59366791]
[1644585625298,59.72070884,107.31,107.2,22.15137186]
[1644585625499,59.72070884,107.31,107.21,7.30770395]
[1644585625700,4.66,107.3,107.22,13.55]
[1644585626001,45.33779303,107.29,107.22,15.93366791]
[1644585626300,45.33779303,107.29,107.22,13.55]
[1644585626601,45.33779303,107.29,107.23,4.66]
[1644585626801,45.33779303,107.29,107.23,13.55]
[1644585627001,59.33179303,107.29,107.23,13.55]
[1644585628101,45.33779303,107.29,107.23,13.8]
[1644585628400,13.9914,107.31,107.23,16.18366791]
[1644585628901,0.7,107.34,107.23,17.49137186]
[1644585629101,13.9886,107.33,107.24,23.1158]
[1644585629300,48.272211,107.32,107.25,13.55]
[1644585629502,48.272211,107.32,107.25,15.93366791]
[1644585629703,48.272211,107.32,107.26,2.38366791]
[1644585630306,62.260911,107.32,107.25,13.55]
[1644585630504,66.920911,107.32,107.25,13.55]
[1644585630903,66.920911,107.32,107.25,16.18366791]
[1644585631503,62.260911,107.32,107.25,15.93366791]
[1644585631705,62.260911,107.32,107.25,13.55]
[1644585631904,4.66,107.31,107.25,13.55]
[1644585632105,54.54072196,107.3,107.25,13.55]
[1644585632307,54.54072196,107.3,107.24,4.66]
[1644585632610,43.83640861,107.28,107.24,4.66]
[1644585632834,48.27685118,107.26,107.24,4.66]
[1644585633029,6.06439994,107.25,107.24,4.66]
[1644585633630,6.06439994,107.25,107.21,1.30770395]
[1644585633829,42.47304757,107.24,107.2,5.96970395]
[1644585634228,42.41604154,107.24,107.2,5.96970395]
[1644585634429,42.41604154,107.24,107.2,1.30770395]
[1644585635029,42.41604154,107.24,107.21,2.38366791]
[1644585635229,6.06439994,107.23,107.21,2.38366791]
[1644585635433,36.34928952,107.22,107.21,2.38366791]
[1644585635729,6.06439994,107.23,107.21,2.38366791]
[1644585636129,4.663,107.28,107.21,2.38366791]
[1644585636530,4.663,107.28,107.21,3.69137186]
[1644585636729,37.06383142,107.27,107.21,2.38366791]
[1644585637733,37.06383142,107.27,107.21,15.93366791]
[1644585637933,37.06383142,107.27,107.21,17.49137186]
[1644585638132,37.06383142,107.27,107.22,3.69137186]
[1644585638333,37.06383142,107.27,107.22,17.49137186]
[1644585638533,37.06383142,107.27,107.23,2.38366791]
[1644585639533,13.9932,107.29,107.23,2.38366791]
[1644585639732,13.9932,107.29,107.23,7.04366791]
[1644585640132,13.9932,107.29,107.24,2.38366791]
[1644585640546,60.01853064,107.29,107.24,2.38366791]
[1644585640746,13.9907,107.3,107.24,2.38366791]
[1644585640944,4.66,107.29,107.24,2.38366791]
[1644585641746,43.04176189,107.29,107.24,2.38366791]
[1644585642044,57.03386189,107.29,107.24,2.38366791]
[1644585642444,43.04176189,107.29,107.24,2.38366791]
[1644585643947,4.66,107.31,107.24,16.18366791]
[1644585644147,4.66,107.33,107.24,16.18366791]
[1644585644346,4.66,107.33,107.25,2.38366791]
[1644585644947,13.9892,107.31,107.25,2.38366791]
[1644585645147,41.76342543,107.3,107.25,2.38366791]
[1644585645348,46.42342543,107.3,107.24,13.8]
[1644585645746,46.42342543,107.3,107.25,2.38366791]
[1644585645949,41.76342543,107.3,107.25,2.38366791]
[1644585646949,13.9892,107.31,107.25,2.38366791]
[1644585647853,47.12040362,107.3,107.25,2.63366791]
[1644585648053,65.77090362,107.3,107.25,2.38366791]
[1644585648253,61.11090362,107.3,107.25,2.38366791]
[1644585649455,61.11090362,107.3,107.23,7.04366791]
[1644585649657,62.60778601,107.28,107.23,4.66]
[1644585649855,62.60778601,107.28,107.22,13.55]
[1644585650254,62.60778601,107.28,107.22,15.93366791]
[1644585651958,4.662,107.27,107.22,15.93366791]
[1644585652159,42.38349528,107.26,107.22,15.93366791]
[1644585653056,13.995,107.27,107.22,15.93366791]
[1644585653961,38.49116805,107.26,107.22,15.93366791]
[1644585654360,38.49116805,107.26,107.22,17.24137186]
[1644585654561,38.49116805,107.26,107.22,15.93366791]
[1644585657465,13.9926,107.28,107.22,15.93366791]
[1644585657961,4.662,107.27,107.22,15.93366791]
[1644585658361,44.91621819,107.26,107.22,15.93366791]
[1644585659763,58.91201819,107.26,107.22,2.38366791]
[1644585660568,46.18464268,107.24,107.2,48.96270395]